Cogmind - Beta 16 --- EXPLORER MODE // 2025.12.15 @ 17:06:34 Player: K.K.Y. Result: Destroyed by K5-5EW(R) with Subdweller Laser Performance ------------- Evolutions (0) 0 Regions Visited (3) 600 Robots Destroyed (27) 135 Value Destroyed (608) 608 Prototype IDs (0) 0 Alien Tech Used (0) 0 Bonus (0) 0 TOTAL SCORE: 1343 Bonus ------- None Cogmind --------- Core Integrity 0/250 Matter 300/300 Energy 68/100 System Corruption 0% Temperature Cool (6) Movement Flying (37) Location -10/Subcaves Parts ------- > --- POWER (1) -------- (None) > --- PROPULSION (3) --- Flight Unit Flight Unit > --- UTILITY (2) ------ Cooling System Weight Redist. System > --- WEAPON (2) ------- Small Laser Subdweller Laser > --- INVENTORY (5) ---- Makeshift Microdissipator Network Structural Scanner Machine Analyzer Sensor Array Improved Terrain Scanner Peak State ------------ > --- POWER ------------ Makeshift Power Source > --- PROPULSION ------- Flight Unit Flight Unit Makeshift Flight Unit > --- UTILITY ---------- Cooling System Weight Redist. System > --- WEAPON ----------- Small Laser Subdweller Laser > --- INVENTORY -------- Makeshift Microdissipator Network Structural Scanner Machine Analyzer Sensor Array Improved Terrain Scanner [Rating: 18] Favorites ----------- Power Ion Engine Engine Ion Engine Propulsion Flight Unit Wheel Wheel Flight Unit Flight Unit Utility Cooling System Device Cooling System Processor Targeting Computer Weapon Assault Rifle Energy Gun Small Laser Ballistic Gun Assault Rifle Special Weapon Mining Laser Build | -11 -10 -10 -10 ------- Run | Yrd Mat Min Sub Slots Evolved 1 | . 1 . . Power . | . . . . Propulsion 1 | . 1 . . Utility . | . . . . Weapon . | . . . . Parts Attached 20 | 6 6 2 6 Power 3 | 1 1 . 1 Engine 3 | 1 1 . 1 Core . | . . . . Reactor . | . . . . Propulsion 5 | 2 1 1 1 Treads . | . . . . Leg . | . . . . Wheel 2 | 2 . . . Hover . | . . . . Flight 3 | . 1 1 1 Utility 4 | 1 2 . 1 Device 3 | . 2 . 1 Storage . | . . . . Processor 1 | 1 . . . Hackware . | . . . . Protection . | . . . . Artifact . | . . . . Weapon 8 | 2 2 1 3 Energy Gun 5 | . 2 1 2 Energy Cannon . | . . . . Ballistic Gun 2 | 2 . . . Ballistic Cannon . | . . . . Launcher . | . . . . Special Weapon 1 | . . . 1 Impact Weapon . | . . . . Slashing Weapon . | . . . . Piercing Weapon . | . . . . Special Melee Weapon . | . . . . Unidentified Prototypes . | . . . . Parts Lost 6 | . . . 6 Power 2 | . . . 2 Propulsion 1 | . . . 1 Utility . | . . . . Weapon 3 | . . . 3 Highest Loss Streak 2 | . . . 2 To Critical Strikes . | . . . . Average Backups 3 | . 3 5 4 Power . | . . . . Propulsion . | . . . . Utility 2 | . 1 4 4 Weapon . | . 1 1 . Tool/Special . | . . . . Unused Backups 5 | . . . 5 Power . | . . . . Propulsion . | . . . . Utility 5 | . . . 5 Weapon . | . . . . Tool/Special . | . . . . Average Slot Usage (%) 79 | . 76 81 86 Engine 11 | . 12 12 10 Wheel 8 | . 15 . . Flight 13 | . 5 18 29 Device 20 | . 17 25 25 Processor 2 | . 3 . . Energy Gun 9 | . . 25 19 Ballistic Gun 11 | . 19 . . Peak Build Rating 18 | 6 9 9 18 Average Rating 8 | 3 7 8 12 On Entrance 5 | . 6 8 9 Avg Prop Armor Cover (%) 5 | . 5 . . Naked Turns . | . . . . Heaviest Build 12 | 9 11 10 12 Greatest Support 22 | 20 20 14 22 Greatest Overweight (x) 2 | 2 2 . . Average Overweight (x) . | 1 . . . Largest Inventory Capacity 5 | 5 5 5 5 Average Capacity 5 | 5 5 5 5 Most Carried 5 | 4 5 5 5 Average Carried 3 | . 3 5 4 Final Capacity 5 | 5 5 5 5 Final Carried 5 | 2 5 5 5 Class Distribution -------------------- 95% | Hacker-Mutant 4% | Scavenger-Mutant Dominant Class ---------------- Hacker-Mutant | -10/Materials Hacker-Mutant | -10/Mines Hacker-Mutant | -10/Subcaves Resources | -11 -10 -10 -10 ----------- Run | Yrd Mat Min Sub Matter Collected 725 | 247 393 40 45 Remotely . | . . . . Salvage Created 967 | 144 554 102 167 Parts 56 | 11 32 5 8 Haulers Intercepted 2 | . 2 . . Recyclers Shooed 3 | . 3 . . Parts Field Recycled . | . . . . Retrieved Matter . | . . . . Parts Self-Destructed . | . . . . Prevented . | . . . . Parts Restored . | . . . . Kills | -11 -10 -10 -10 ------- Run | Yrd Mat Min Sub Combat Hostiles Destroyed 15 | . 9 2 4 Guns 15 | . 9 2 4 Classes Destroyed 8 | 2 5 . 1 Worker 3 | . 3 . . Tunneler 3 | 3 . . . Hauler 2 | . 2 . . Recycler 1 | 1 . . . Watcher 3 | . 3 . . Swarmer 2 | . 2 . . Grunt 11 | . 7 2 2 Subdweller 2 | . . . 2 Best Kill Streak 4 | 2 4 2 2 Combat Bots Only 3 | . 3 2 2 Max Kills in Single Turn 2 | 1 2 1 1 Gunslinging 1 | . 1 . . Exploded . | . . . . Melee . | . . . . Uniques/NPCs Destroyed . | . . . . Combat | -11 -10 -10 -10 -------- Run | Yrd Mat Min Sub Hostile Shots Fired 97 | . 37 11 49 Missed 20 | . 7 4 9 Hits 77 | . 30 7 40 Projectile 77 | . 30 7 40 AOE 1 | . . . 1 Critical Strikes 1 | . . . 1 Damage Taken 847 | . 255 62 530 Core 252 | . 90 . 162 Absorbed by Shields . | . . . . Ignored by Resistances 520 | . 161 38 321 Core Remaining (%) 100 | 100 . . . Volleys Fired 88 | 5 52 6 25 Largest 2 | 2 2 2 2 Hottest 150 | 40 40 90 150 Shots Fired 152 | 10 90 12 40 Gun 147 | 10 90 12 35 Cannon . | . . . . Launcher . | . . . . Special 5 | . . . 5 Kinetic 100 | 10 90 . . Thermal 52 | . . 12 40 Explosive . | . . . . Electromagnetic . | . . . . Robot Hit Streak 53 | 7 31 41 53 Robot Miss Streak 1 | . 1 . 1 Penetration Max . | . . . . Secondary Targets 2 | . 2 . . Max Gunslinging Chain 1 | . 1 . . Shots Hit Robots 129 | 7 82 10 30 Core Hits 46 | 5 28 5 8 Critical Kills . | . . . . Critical Parts Destroyed 1 | . 1 . . Critical Strikes 1 | . 1 . . Destroy 1 | . 1 . . Melee Attacks . | . . . . Impact . | . . . . Slashing . | . . . . Piercing . | . . . . Sneak Attacks . | . . . . Combat Hostiles . | . . . . Follow-up Attacks . | . . . . Damage Inflicted 1656 | 80 1013 117 446 Guns 1608 | 80 1013 117 398 Cannons . | . . . . Explosions . | . . . . Melee . | . . . . Ramming . | . . . . Kinetic 1093 | 80 1013 . . Thermal 563 | . . 117 446 Explosive . | . . . . Electromagnetic . | . . . . Impact . | . . . . Slashing . | . . . . Piercing . | . . . . Highest Corruption . | . . . . Average Corruption . | . . . . Corruption Purged . | . . . . Corruption Blocked . | . . . . Overload Shots . | . . . . Overflow Damage . | . . . . Projectiles . | . . . . Explosions . | . . . . Melee . | . . . . Knockbacks . | . . . . Impact . | . . . . Kinetic . | . . . . Secondary . | . . . . Self-Inflicted Damage . | . . . . Shots . | . . . . Rammed . | . . . . Targets Rammed . | . . . . Kicked . | . . . . Crushed . | . . . . Highest Temperature 147 | . 6 . 147 Average Temperature 23 | . 2 . 49 Received Heat Transfer 523 | . 174 57 292 Siege Activations . | . . . . Martial Activations . | . . . . Shielding Activations . | . . . . Robots Disrupted . | . . . . Combat Hostiles . | . . . . Robots Corrupted . | . . . . Combat Hostiles . | . . . . Parts Fried . | . . . . Impact Corruptions . | . . . . Robots Melted . | . . . . Combat Hostiles . | . . . . Parts Melted 2 | . . 1 1 Heat Transferred 1046 | . . 322 724 Parts Sabotaged . | . . . . Parts Stolen . | . . . . Parts Stripped . | . . . . Power Chain Reactions . | . . . . Alert | -11 -10 -10 -10 ------- Run | Yrd Mat Min Sub Maximum Alert Level . | . . . . Low Security (%) 100 | 100 100 100 . Level 1 . | . . . . Level 2 . | . . . . Level 3 . | . . . . Level 4 . | . . . . Level 5 . | . . . . High Security . | . . . . Max Security . | . . . . Peak Influence 82 | 10 82 50 . Initial . | . . . . Average 7 | 1 9 4 . Influence Increases 380 | 20 260 50 50 Destroy 0b10 Robot/C 260 | . 180 40 40 Destroy 0b10 Robot/NC 60 | 20 40 . . Destroy Leader 60 | . 40 10 10 Influence Decreases 380 | 20 260 50 50 Time Decay 380 | 20 260 50 50 Squads Dispatched . | . . . . Investigation . | . . . . Extermination . | . . . . Reinforcement . | . . . . Assault . | . . . . Garrison . | . . . . Intercept . | . . . . Searches Triggered . | . . . . Construction Impeded . | . . . . Haulers Reinforced . | . . . . Active Scanning Responses . | . . . . Cargo Convoy Interrupts . | . . . . Stealth | -11 -10 -10 -10 --------- Run | Yrd Mat Min Sub Distress Signals . | . . . . Communications Jammed . | . . . . Distress Signals . | . . . . Times Spotted 22 | . 12 2 8 Peak Tracking Total 3 | . 3 2 2 Tactical Retreats 1 | . . . 1 Traps | -11 -10 -10 -10 ------- Run | Yrd Mat Min Sub Traps Triggered 4 | . 4 . . Indirectly . | . . . . Trap Hack Attempts . | . . . . Triggered . | . . . . Disarmed . | . . . . Reprogrammed . | . . . . Reused . | . . . . Traps Extracted . | . . . . Installed . | . . . . Triggered . | . . . . Machines | -11 -10 -10 -10 ---------- Run | Yrd Mat Min Sub Machines Disabled . | . . . . Max in Single Turn . | . . . . Machines Repaired . | . . . . Machines Dismantled . | . . . . Machines Sabotaged . | . . . . Overloaded Fab Kills . | . . . . Hacking | -11 -10 -10 -10 --------- Run | Yrd Mat Min Sub Machines Accessed . | . . . . Terminals . | . . . . Fabricators . | . . . . Repair Stations . | . . . . Recycling Units . | . . . . Scanalyzers . | . . . . Garrison Access . | . . . . Total Hacks . | . . . . Successful . | . . . . Failed . | . . . . Catastrophic . | . . . . Database Lockouts . | . . . . Manual . | . . . . Terminals . | . . . . Fabricators . | . . . . Repair Stations . | . . . . Recycling Units . | . . . . Scanalyzers . | . . . . Garrison Access . | . . . . Terminal Hacks . | . . . . Fabricator Hacks . | . . . . Repair Station Hacks . | . . . . Recycling Unit Hacks . | . . . . Scanalyzer . | . . . . Garrison Access Hacks . | . . . . Unauthorized Hacks . | . . . . Terminals . | . . . . Fabricators . | . . . . Repair Stations . | . . . . Recycling Units . | . . . . Scanalyzers . | . . . . Garrison Access . | . . . . Data Cores Recovered . | . . . . Used . | . . . . Hacking Detections . | . . . . Full Trace Events . | . . . . Feedback Events . | . . . . Feedback Blocked . | . . . . Robot Schematics Acquired . | . . . . Robots Built . | . . . . Authchips . | . . . . Time . | . . . . Total Robot Build Rating . | . . . . Part Schematics Acquired . | . . . . Parts Built . | . . . . Authchips . | . . . . Time . | . . . . Total Part Build Rating . | . . . . Part Studies Acquired . | . . . . Parts Repaired . | . . . . Time . | . . . . Parts Recycled . | . . . . Recycled Matter . | . . . . Retrieved Matter . | . . . . Retrieved Components . | . . . . Parts Scanalyzed . | . . . . Part Schematics Acquired . | . . . . Parts Damaged . | . . . . Bothacking | -11 -10 -10 -10 ------------ Run | Yrd Mat Min Sub Used RIF Installer . | . . . . Robots Hacked . | . . . . Non-combat . | . . . . Combat . | . . . . Robot Hacks Applied . | . . . . Relay Couplers Released . | . . . . Fabnet Peak Effective % . | . . . . Robots Rewired . | . . . . Allies Hacked . | . . . . Hacks Repelled . | . . . . Allies | -11 -10 -10 -10 -------- Run | Yrd Mat Min Sub Total Allies . | . . . . Largest Group . | . . . . Highest-Rated Group . | . . . . Highest-Rated Ally . | . . . . Total Orders . | . . . . Ally Attacks . | . . . . Total Damage . | . . . . Kills . | . . . . Allies Corrupted . | . . . . Allies Melted . | . . . . Intel | -11 -10 -10 -10 ------- Run | Yrd Mat Min Sub Active Infowar (turns) . | . . . . Robot Analysis Total . | . . . . Derelict Logs Recovered 1 | . . . 1 Drone Launches . | . . . . Drone Recoveries . | . . . . Exploration | -11 -10 -10 -10 ------------- Run | Yrd Mat Min Sub Turns Passed 1925 | 80 1067 373 405 Spaces Moved 2186 | 45 970 703 468 Core 45 | 42 3 . . Treads . | . . . . Legs . | . . . . Wheels 496 | 3 493 . . Hover . | . . . . Flight 1645 | . 474 703 468 Fastest Speed 37 | 50 40 37 37 Average Speed 62 | 114 88 38 37 Slowest Speed 150 | 150 150 40 39 Overloaded Moves . | . . . . Propulsion Burnouts . | . . . . Robots Hopped 8 | . 5 3 . Potential Cave-ins . | . . . . Cave-ins Triggered . | . . . . Exploration Rate (%) 60 | 3 99 100 41 Regions Visited 3 Branch Regions 2 Pre-discovered Areas 1 | . . . 1 Known Exits Taken 3 | 1 1 1 . Unknown Exits Taken . | . . . . Scrap Searched . | . . . . Spaces Dug . | . . . . Terrain Destroyed . | . . . . Melee . | . . . . Projectile . | . . . . AOE . | . . . . Terrain Rammed . | . . . . Walls Destroyed . | . . . . Machines Disabled . | . . . . Actions | -11 -10 -10 -10 --------- Run | Yrd Mat Min Sub Total 2580 | 63 1085 786 646 Wait 265 | . 45 78 142 Move 2168 | 44 959 697 468 Hop 7 | . 5 2 . Pick Up 18 | 8 7 . 3 Fast Attach 11 | . 7 1 3 Attach 10 | 6 2 . 2 Detach 1 | . 1 . . Swap 4 | . 1 1 2 Drop 8 | . 6 1 1 Fire 88 | 5 52 6 25 Melee . | . . . . Ram . | . . . . Kick . | . . . . Crush . | . . . . Escape Stasis . | . . . . Rewire . | . . . . Trap . | . . . . Miscellaneous . | . . . . Route ------- -11/Scrapyard -10/Materials (discovered 5 exits: *Mat x3 / *Min / *Sub) -10/Mines (discovered 3 exits: *Mat x2 / *Sub) -10/Subcaves History --------- Turn | Location | Event 5 | -11/Scrapyard | Identified exit to Materials 5 | -11/Scrapyard | Discovered exit to Materials (range 14) 81 | -11/Scrapyard | Entered Materials 81 | -10/Materials | Evolved 1 slot: Propulsion x1 253 | -10/Materials | Identified exit to Mines 253 | -10/Materials | Discovered exit to Mines (range 14) 308 | -10/Materials | Build established: Hacker-Mutant 363 | -10/Materials | Identified exit to Materials 363 | -10/Materials | Discovered exit to Materials (range 9) 374 | -10/Materials | Identified exit to Subcaves 374 | -10/Materials | Discovered exit to Subcaves (range 12) 503 | -10/Materials | Discovered exit to Materials (range 12) 835 | -10/Materials | Discovered exit to Materials (range 8) 1148 | -10/Materials | Entered Mines 1268 | -10/Mines | Discovered exit to Materials (range 5) 1406 | -10/Mines | Discovered exit to Materials (range 8) 1444 | -10/Mines | Discovered exit to Subcaves (range 5) 1521 | -10/Mines | Entered Subcaves 1522 | -10/Subcaves | Approached by a straggling Scientist 1522 | -10/Subcaves | Learned location of Recycling (-7) 1581 | -10/Subcaves | Ambushed by Subdwellers from Twisted Machinery 1612 | -10/Subcaves | Shifting Twisted Machinery released Sub. Laser 1612 | -10/Subcaves | Shifting Twisted Machinery released Battle Cannon 1648 | -10/Subcaves | Core integrity fell below 50% 1715 | -10/Subcaves | A swath of the cavern ceiling suddenly collapsed 1775 | -10/Subcaves | Core integrity fell below 20% 1889 | -10/Subcaves | Disturbed a concealed Subdweller 1910 | -10/Subcaves | Disturbed a concealed Subdweller 1926 | -10/Subcaves | Destroyed by K5-5EW(R) with Subdweller Laser Last Messages --------------- 01756_ Acquired Mak. Flight Unit. 01758_ Acquired 10 matter. 01760_ Dropped Weight Redist. System. 01761_ Acquired Mak. Microdissipator Network. 01762_ Acquired 2 matter. 01778_ Ion Engine destroyed. 01780_ G-47 Trooper destroyed. 01782_ G-34 Mercenary destroyed. 01784_ Acquired 3 matter. 01785_ Acquired Sml. Laser. 01787_ Acquired 10 matter. 01814_ Acquired Mak. Power Source. 01905_ C2-Z6L(R): "SUB#$%&!" 01908_ Mak. Flight Unit destroyed. 01910_ BF-PXC(R) angrily emerges from the Twisted Machinery. 01917_ Critical hit (Meltdown: +160). 01917_ Sub. Laser melted. 01917_ C2-Z6L(R) destroyed. 01924_ Mak. Power Source destroyed. Map ----- +----------------------------------------------------+ | ????????????????????????????????????# #??????? | | ????????????????????????????????????### #??????? | | ?????????????????????????????????????# ##??????? | | ????????????????????????????????????### #??????? | | ????????????????????????????????????# ##?????? | | ????????????????????????????????????# #?????? | | ????????????????????????????????????## ##?????? | | ?????????????????????????????????????## #??????? | | ???????????????????????????????????##?# #??????? | | ???????????????????????????????????# ## #??????? | | ???????????????????????????????????# #??????? | | ???????????????????????????????????## #??????? | | ????????????????????????????????????## #??????? | | ?????????????????????????????????????## #??????? | | ??????????????????????????????????????# #??????? | | ????????????????????????????##??####### #??????? | | ????????????????????????????# ### ## ##??????? | | ????????????????????????????# ##???????? | | ????????????????????#####???# ##???????? | | ??????????????????###<<< #### ### #???????? | | ?????????????????## < &<## ####?######???????? | | ?????????????????#< <<< <<## ###?##????????????? | | ????????????????##" < R ## ## ###??????????? | | ????????????????#" R # #??????????? | | ????????????????#" ;; ## ## #??????????? | | ????????????????#" $$$ #@ #" ##?????????????? | | ????????????????# $#$ ;! #??????????????? | | ????????????????# $$$ #!& ## #?????????????? | | ????????????????# #%#< #? #????????????? | | ????????????????## << =!###< #?# ???????????? | | ?????????????????#< &<& ## #?? ?????????? | | ?????????????????##< " < ### ? ???????? | | ??????????????????### <<##?# ? ??????? | | ????????????????????#######??# #??????? | | ????????????????????????????? ##??????? | | ????????????????????????????? ### ####???????? | | ????????????????????????????? #??#####??????????? | | #???????????????????????????? ?????????????????? | | #???????????????????????????? ?????????????????? | | ???????????????????????????? ?????????????????? | | ????????????????????????????? ?????????????????? | | ????????????????????????????? ??????????????????? | | ?????????????????????????????# ??????????????????? | | ?????????????????????????????????????????????????? | | ??????????????????####???????????????????????????? | | ???????????????#### ####????????????????????????? | | ??????????????## # #??????????????????????? | | #????#####??### #??????????????????????? | | #???## #### ##??????????????????????? | | #???# #### #????????????????????? | +----------------------------------------------------+ Best States ------------- Heat Dissipation 47 Energy Generation 15 Energy Capacity 250 Matter Stores 300 Matter Capacity 300 Sight Range 16 Terrain Scan Density 10 Additional Mass Support 6 Resistance: KI 35 Resistance: TH 35 Resistance: EX 35 Resistance: EM 35 Resistance: I 35 Resistance: S 35 Resistance: P 35 Evasion (%) 62 Targeting Accuracy 5 Offensive Hacking 20 Item Schematics ----------------- None Robot Schematics ------------------ None Fabricated ------------ Nothing Repaired ---------- Nothing Studied --------- None Alien Tech Used ----------------- None Achievements -------------- None Challenges ------------ None Game ------ Seed ReflectiveCombatWarhead Manual? 0 Play Time 00:15:41 Cumulative 199.8 hours Start 2025.12.15 @ 16:54:23 End 2025.12.15 @ 17:06:34 Sessions 1 Manual Loads 0 Difficulty Explorer Special Mode None Game No. 301 Rogue 0 Adventurer 0 Explorer 301 Win Type - Total 0 Types 0/0/0/0/0/0/0/0/0/0 Lore% 71 Gallery% 67 Achievement% 53 Wizard Run 0 Options --------- Layout 1 ASCII 0 Keyboard 0 Movement Mouse Keybinds 0 Fullscreen 1 Font 24/Smallcaps Map View 50x35 Zoom Use 0% Tactical HUD 1 Map Filters NONE Filters NONE Steam 1 RUN: 6a125530-5797-498e-ac2c-3c76237de32d